[Event "Titled Tuesday Blitz March 15 Early 2022"]
[White "Brunner, Nicolas"]
[Black "Prohorov, Olexandr"]
[WhiteFideId "620246"]
[BlackFideId "14105578"]
[WhiteElo "2372"]
[BlackElo "1993"]
[Result "1-0"]
[Round "11"]
[TimeControl "180+1"]
[Date "2022.03.15"]
[WhiteClock "0:00:15"]
[BlackClock "0:00:02"]

1. d4 {[%clk 0:03:00]}  g6 {[%clk 0:02:59]} 2. e4 {[%clk 0:02:59]}  Bg7 {[%clk 0:03:00]} 3. Nc3 {[%clk 0:02:58]}  c6 {[%clk 0:02:59]} 4. Nf3 {[%clk 0:02:55]}  d5 {[%clk 0:02:59]} 5. h3 {[%clk 0:02:54]}  dxe4 {[%clk 0:02:59]} 6. Nxe4 {[%clk 0:02:53]}  Nd7 {[%clk 0:03:00]} 7. Bc4 {[%clk 0:02:52]}  Ngf6 {[%clk 0:03:00]} 8. Nxf6+ {[%clk 0:02:51]}  Nxf6 {[%clk 0:03:00]} 9. O-O {[%clk 0:02:52]}  O-O {[%clk 0:03:00]} 10. Re1 {[%clk 0:02:52]}  Nd5 {[%clk 0:02:59]} 11. c3 {[%clk 0:02:50]}  b5 {[%clk 0:02:59]} 12. Bb3 {[%clk 0:02:49]}  a5 {[%clk 0:03:00]} 13. a3 {[%clk 0:02:40]}  Bb7 {[%clk 0:02:57]} 14. Ne5 {[%clk 0:02:36]}  Qc7 {[%clk 0:02:56]} 15. Nd3 {[%clk 0:02:30]}  Rad8 {[%clk 0:02:50]} 16. Bg5 {[%clk 0:02:29]}  a4 {[%clk 0:02:42]} 17. Ba2 {[%clk 0:02:28]}  Rfe8 {[%clk 0:02:37]} 18. Qe2 {[%clk 0:02:25]}  Bc8 {[%clk 0:02:29]} 19. Rad1 {[%clk 0:02:22]}  Bf5 {[%clk 0:02:28]} 20. Bh4 {[%clk 0:01:59]}  Qa7 {[%clk 0:02:00]} 21. Bg3 {[%clk 0:01:56]}  Bxd3 {[%clk 0:01:51]} 22. Rxd3 {[%clk 0:01:47]}  e6 {[%clk 0:01:52]} 23. Qf3 {[%clk 0:01:40]}  c5 {[%clk 0:01:47]} 24. dxc5 {[%clk 0:01:39]}  Qxc5 {[%clk 0:01:48]} 25. Red1 {[%clk 0:01:38]}  h5 {[%clk 0:01:30]} 26. Bxd5 {[%clk 0:01:35]}  exd5 {[%clk 0:01:29]} 27. Rxd5 {[%clk 0:01:35]}  Re1+ {[%clk 0:01:21]} 28. Rxe1 {[%clk 0:01:27]}  Qxd5 {[%clk 0:01:01]} 29. Re8+ {[%clk 0:01:20]}  Kh7 {[%clk 0:01:01]} 30. Qxd5 {[%clk 0:01:15]}  Rxd5 {[%clk 0:01:01]} 31. Rb8 {[%clk 0:01:15]}  Be5 {[%clk 0:00:55]} 32. Bxe5 {[%clk 0:01:12]}  Rxe5 {[%clk 0:00:56]} 33. Kf1 {[%clk 0:01:13]}  Kg7 {[%clk 0:00:56]} 34. Rb6 {[%clk 0:01:12]}  Kh6 {[%clk 0:00:55]} 35. f4 {[%clk 0:01:07]}  Rd5 {[%clk 0:00:53]} 36. Ke2 {[%clk 0:01:07]}  Kg7 {[%clk 0:00:49]} 37. Ke3 {[%clk 0:01:05]}  Kf8 {[%clk 0:00:41]} 38. g3 {[%clk 0:00:55]}  h4 {[%clk 0:00:36]} 39. gxh4 {[%clk 0:00:47]}  Rh5 {[%clk 0:00:35]} 40. Ke4 {[%clk 0:00:44]}  Ke7 {[%clk 0:00:32]} 41. c4 {[%clk 0:00:24]}  bxc4 {[%clk 0:00:33]} 42. Rb4 {[%clk 0:00:24]}  Rxh4 {[%clk 0:00:25]} 43. Rxc4 {[%clk 0:00:24]}  g5 {[%clk 0:00:17]} 44. Kf5 {[%clk 0:00:21]}  gxf4 {[%clk 0:00:08]} 45. Rxf4 {[%clk 0:00:20]}  Rxh3 {[%clk 0:00:07]} 46. Rxa4 {[%clk 0:00:20]}  Rb3 {[%clk 0:00:06]} 47. Re4+ {[%clk 0:00:16]}  Kd6 {[%clk 0:00:06]} 48. Re2 {[%clk 0:00:16]}  Rf3+ {[%clk 0:00:05]} 49. Ke4 {[%clk 0:00:16]}  Rb3 {[%clk 0:00:03]} 50. Kd4 {[%clk 0:00:16]}  f5 {[%clk 0:00:02]} 51. Kc4 {[%clk 0:00:16]}  Rb8 {[%clk 0:00:02]} 52. b4 {[%clk 0:00:15]} 1-0


[Site "https://www.chess.com"]

[Event "Titled Tuesday Blitz March 15 Early 2022"]
[White "Bryakin, Mikhail"]
[Black "Jeet, Jain"]
[WhiteFideId "4165314"]
[BlackFideId "5073022"]
[WhiteElo "2417"]
[BlackElo "2085"]
[Result "1-0"]
[Round "11"]
[TimeControl "180+1"]
[Date "2022.03.15"]
[WhiteClock "0:00:48"]
[BlackClock "0:00:13"]

1. e4 {[%clk 0:03:00]}  c6 {[%clk 0:02:55]} 2. Nc3 {[%clk 0:02:56]}  d5 {[%clk 0:02:55]} 3. Nf3 {[%clk 0:02:57]}  dxe4 {[%clk 0:02:53]} 4. Nxe4 {[%clk 0:02:57]}  Nf6 {[%clk 0:02:54]} 5. Qe2 {[%clk 0:02:56]}  Nxe4 {[%clk 0:02:52]} 6. Qxe4 {[%clk 0:02:57]}  Nd7 {[%clk 0:02:53]} 7. d4 {[%clk 0:02:52]}  Nf6 {[%clk 0:02:53]} 8. Qh4 {[%clk 0:02:53]}  Bf5 {[%clk 0:02:52]} 9. c3 {[%clk 0:02:50]}  e6 {[%clk 0:02:52]} 10. Be2 {[%clk 0:02:48]}  Be7 {[%clk 0:02:52]} 11. O-O {[%clk 0:02:43]}  h6 {[%clk 0:02:51]} 12. Qg3 {[%clk 0:02:40]}  Nh5 {[%clk 0:02:33]} 13. Qe5 {[%clk 0:02:31]}  Bd6 {[%clk 0:02:33]} 14. Qe3 {[%clk 0:02:30]}  Bf4 {[%clk 0:02:33]} 15. Qxf4 {[%clk 0:02:28]}  Nxf4 {[%clk 0:02:33]} 16. Bxf4 {[%clk 0:02:28]}  O-O {[%clk 0:02:33]} 17. h3 {[%clk 0:02:28]}  Qb6 {[%clk 0:02:34]} 18. b3 {[%clk 0:02:25]}  a5 {[%clk 0:02:34]} 19. Bd6 {[%clk 0:02:23]}  Rfd8 {[%clk 0:02:33]} 20. Bc5 {[%clk 0:02:24]}  Qc7 {[%clk 0:02:33]} 21. Rfd1 {[%clk 0:02:18]}  a4 {[%clk 0:02:33]} 22. Rdc1 {[%clk 0:02:12]}  b6 {[%clk 0:02:30]} 23. Ba3 {[%clk 0:02:10]}  c5 {[%clk 0:02:22]} 24. dxc5 {[%clk 0:02:03]}  bxc5 {[%clk 0:02:23]} 25. b4 {[%clk 0:01:54]}  c4 {[%clk 0:02:13]} 26. Nd4 {[%clk 0:01:54]}  Bd3 {[%clk 0:02:13]} 27. Bf3 {[%clk 0:01:54]}  e5 {[%clk 0:02:06]} 28. Bxa8 {[%clk 0:01:53]}  Rxa8 {[%clk 0:02:05]} 29. Nf3 {[%clk 0:01:50]}  Be4 {[%clk 0:01:59]} 30. Nd2 {[%clk 0:01:48]}  Bd5 {[%clk 0:01:58]} 31. Re1 {[%clk 0:01:48]}  f6 {[%clk 0:01:56]} 32. Nf1 {[%clk 0:01:48]}  f5 {[%clk 0:01:52]} 33. Rad1 {[%clk 0:01:48]}  Be4 {[%clk 0:01:49]} 34. Ng3 {[%clk 0:01:45]}  Bd3 {[%clk 0:01:48]} 35. Bc1 {[%clk 0:01:45]}  e4 {[%clk 0:01:45]} 36. Nh5 {[%clk 0:01:43]}  g5 {[%clk 0:01:37]} 37. Be3 {[%clk 0:01:41]}  Qf7 {[%clk 0:01:34]} 38. g4 {[%clk 0:01:41]}  fxg4 {[%clk 0:01:30]} 39. hxg4 {[%clk 0:01:42]}  Qf3 {[%clk 0:01:30]} 40. Kh2 {[%clk 0:01:39]}  Rf8 {[%clk 0:01:28]} 41. Rg1 {[%clk 0:01:38]}  Qe2 {[%clk 0:01:24]} 42. a3 {[%clk 0:01:36]}  Rf3 {[%clk 0:01:21]} 43. Rde1 {[%clk 0:01:31]}  Qb2 {[%clk 0:01:18]} 44. Bd4 {[%clk 0:01:30]}  Rxf2+ {[%clk 0:01:06]} 45. Bxf2 {[%clk 0:01:11]}  Qxf2+ {[%clk 0:01:07]} 46. Kh3 {[%clk 0:01:11]}  e3 {[%clk 0:01:04]} 47. Ng3 {[%clk 0:01:11]}  h5 {[%clk 0:00:58]} 48. gxh5 {[%clk 0:01:09]}  Kh7 {[%clk 0:00:47]} 49. b5 {[%clk 0:01:06]}  Qf4 {[%clk 0:00:19]} 50. b6 {[%clk 0:01:01]}  g4+ {[%clk 0:00:16]} 51. Kh2 {[%clk 0:00:49]}  Qf2+ {[%clk 0:00:16]} 52. Kh1 {[%clk 0:00:50]}  Qf6 {[%clk 0:00:16]} 53. Rxe3 {[%clk 0:00:46]}  Qxb6 {[%clk 0:00:14]} 54. Rge1 {[%clk 0:00:46]}  Qc6+ {[%clk 0:00:13]} 55. Kh2 {[%clk 0:00:46]}  Qb5 {[%clk 0:00:12]} 56. Re7+ {[%clk 0:00:47]}  Kg8 {[%clk 0:00:12]} 57. Re8+ {[%clk 0:00:47]}  Kf7 {[%clk 0:00:12]} 58. R8e7+ {[%clk 0:00:47]}  Kf6 {[%clk 0:00:13]} 59. R1e6+ {[%clk 0:00:47]}  Kg5 {[%clk 0:00:13]} 60. Re5+ {[%clk 0:00:48]} 1-0


[Site "https://www.chess.com"]

[Event "Titled Tuesday Blitz March 15 Early 2022"]
[White "Coto Mederos, Michel"]
[Black "Guseva, Marina"]
[WhiteFideId "3508528"]
[BlackFideId "4149351"]
[WhiteElo "2427"]
[BlackElo "2160"]
[Result "0-1"]
[Round "11"]
[TimeControl "180+1"]
[Date "2022.03.15"]
[WhiteClock "0:00:01"]
[BlackClock "0:00:19"]

1. c4 {[%clk 0:02:58]}  Nf6 {[%clk 0:02:57]} 2. Nc3 {[%clk 0:02:57]}  e6 {[%clk 0:02:57]} 3. e4 {[%clk 0:02:55]}  c5 {[%clk 0:02:57]} 4. e5 {[%clk 0:02:41]}  Ng8 {[%clk 0:02:56]} 5. Nf3 {[%clk 0:02:40]}  Nc6 {[%clk 0:02:55]} 6. d4 {[%clk 0:02:40]}  cxd4 {[%clk 0:02:55]} 7. Nxd4 {[%clk 0:02:41]}  Nxe5 {[%clk 0:02:55]} 8. Bf4 {[%clk 0:02:38]}  Ng6 {[%clk 0:02:38]} 9. Bg3 {[%clk 0:02:35]}  a6 {[%clk 0:02:37]} 10. h4 {[%clk 0:02:25]}  N6e7 {[%clk 0:02:28]} 11. Be2 {[%clk 0:02:10]}  Nc6 {[%clk 0:02:24]} 12. O-O {[%clk 0:02:08]}  Nf6 {[%clk 0:02:09]} 13. Qd2 {[%clk 0:01:42]}  Be7 {[%clk 0:02:08]} 14. Rad1 {[%clk 0:01:41]}  O-O {[%clk 0:02:03]} 15. Rfe1 {[%clk 0:01:41]}  Qb6 {[%clk 0:01:41]} 16. Nb3 {[%clk 0:01:30]}  Rd8 {[%clk 0:01:35]} 17. Bf3 {[%clk 0:01:28]}  d6 {[%clk 0:01:29]} 18. h5 {[%clk 0:01:19]}  h6 {[%clk 0:01:27]} 19. Bf4 {[%clk 0:01:05]}  e5 {[%clk 0:01:23]} 20. Be3 {[%clk 0:01:04]}  Qc7 {[%clk 0:01:22]} 21. Nd5 {[%clk 0:00:59]}  Nxd5 {[%clk 0:01:22]} 22. cxd5 {[%clk 0:01:00]}  Nb8 {[%clk 0:01:09]} 23. Rc1 {[%clk 0:00:56]}  Qd7 {[%clk 0:01:08]} 24. Na5 {[%clk 0:00:50]}  Qf5 {[%clk 0:00:48]} 25. Rc7 {[%clk 0:00:45]}  Nd7 {[%clk 0:00:46]} 26. Rec1 {[%clk 0:00:35]}  Bg5 {[%clk 0:00:43]} 27. Bxg5 {[%clk 0:00:26]}  hxg5 {[%clk 0:00:42]} 28. Qb4 {[%clk 0:00:23]}  Nf6 {[%clk 0:00:40]} 29. Nc4 {[%clk 0:00:15]}  e4 {[%clk 0:00:36]} 30. Be2 {[%clk 0:00:14]}  Nxd5 {[%clk 0:00:33]} 31. Qa5 {[%clk 0:00:10]}  Nxc7 {[%clk 0:00:32]} 32. Qxc7 {[%clk 0:00:11]}  Be6 {[%clk 0:00:32]} 33. Nxd6 {[%clk 0:00:10]}  Qf4 {[%clk 0:00:32]} 34. Nxb7 {[%clk 0:00:10]}  Rdc8 {[%clk 0:00:30]} 35. Qc6 {[%clk 0:00:08]}  Qxc1+ {[%clk 0:00:29]} 36. Qxc1 {[%clk 0:00:06]}  Rxc1+ {[%clk 0:00:28]} 37. Kh2 {[%clk 0:00:05]}  Bxa2 {[%clk 0:00:28]} 38. Nd6 {[%clk 0:00:04]}  Rc2 {[%clk 0:00:26]} 39. Bg4 {[%clk 0:00:03]}  Rxb2 {[%clk 0:00:24]} 40. Nxe4 {[%clk 0:00:03]}  Bd5 {[%clk 0:00:20]} 41. Nc3 {[%clk 0:00:02]}  Be6 {[%clk 0:00:19]} 42. Bf3 {[%clk 0:00:02]}  Rc8 {[%clk 0:00:19]} 43. Ne4 {[%clk 0:00:01]}  a5 {[%clk 0:00:19]} 0-1


[Site "https://www.chess.com"]

[Event "Titled Tuesday Blitz March 15 Early 2022"]
[White "Csonka, Balazs"]
[Black "Lou, Yiping"]
[WhiteFideId "742910"]
[BlackFideId "8603928"]
[WhiteElo "2404"]
[BlackElo "2412"]
[Result "1-0"]
[Round "11"]
[TimeControl "180+1"]
[Date "2022.03.15"]
[WhiteClock "0:00:09"]
[BlackClock "0:00:33"]

1. d4 {[%clk 0:02:54]}  e6 {[%clk 0:02:57]} 2. Nf3 {[%clk 0:02:53]}  d5 {[%clk 0:02:55]} 3. c4 {[%clk 0:02:50]}  Nf6 {[%clk 0:02:54]} 4. Nc3 {[%clk 0:02:51]}  Be7 {[%clk 0:02:49]} 5. g3 {[%clk 0:02:46]}  O-O {[%clk 0:02:49]} 6. Bg2 {[%clk 0:02:47]}  c6 {[%clk 0:02:48]} 7. O-O {[%clk 0:02:46]}  b6 {[%clk 0:02:48]} 8. Ne5 {[%clk 0:02:45]}  Bb7 {[%clk 0:02:45]} 9. e4 {[%clk 0:02:45]}  Na6 {[%clk 0:02:40]} 10. Re1 {[%clk 0:02:31]}  Bb4 {[%clk 0:02:30]} 11. Bg5 {[%clk 0:02:15]}  dxc4 {[%clk 0:02:17]} 12. Nxc4 {[%clk 0:02:10]}  h6 {[%clk 0:02:16]} 13. Bxf6 {[%clk 0:01:51]}  Qxf6 {[%clk 0:02:17]} 14. a3 {[%clk 0:01:51]}  Bxc3 {[%clk 0:02:11]} 15. bxc3 {[%clk 0:01:52]}  Qe7 {[%clk 0:02:09]} 16. a4 {[%clk 0:01:40]}  Rfd8 {[%clk 0:02:04]} 17. Qc2 {[%clk 0:01:25]}  Rac8 {[%clk 0:02:01]} 18. Rad1 {[%clk 0:01:23]}  Nc7 {[%clk 0:01:53]} 19. e5 {[%clk 0:01:18]}  Ne8 {[%clk 0:01:52]} 20. Qe4 {[%clk 0:00:52]}  Ba6 {[%clk 0:01:40]} 21. Ne3 {[%clk 0:00:48]}  Qa3 {[%clk 0:01:38]} 22. Qc2 {[%clk 0:00:43]}  Qe7 {[%clk 0:01:29]} 23. c4 {[%clk 0:00:41]}  Bb7 {[%clk 0:01:17]} 24. c5 {[%clk 0:00:40]}  Nc7 {[%clk 0:01:12]} 25. Nc4 {[%clk 0:00:37]}  Nd5 {[%clk 0:01:12]} 26. Nd6 {[%clk 0:00:36]}  Rb8 {[%clk 0:01:10]} 27. Rb1 {[%clk 0:00:34]}  Ba8 {[%clk 0:01:02]} 28. Rb3 {[%clk 0:00:33]}  Qc7 {[%clk 0:00:56]} 29. Rc1 {[%clk 0:00:24]}  Ne7 {[%clk 0:00:45]} 30. Be4 {[%clk 0:00:20]}  Kf8 {[%clk 0:00:44]} 31. Rf3 {[%clk 0:00:19]}  Nf5 {[%clk 0:00:38]} 32. Bxf5 {[%clk 0:00:18]}  exf5 {[%clk 0:00:38]} 33. Qxf5 {[%clk 0:00:13]}  Kg8 {[%clk 0:00:38]} 34. Nxf7 {[%clk 0:00:12]}  Rf8 {[%clk 0:00:38]} 35. e6 {[%clk 0:00:13]}  bxc5 {[%clk 0:00:38]} 36. dxc5 {[%clk 0:00:12]}  Qe7 {[%clk 0:00:35]} 37. Qg6 {[%clk 0:00:09]}  Rbe8 {[%clk 0:00:32]} 38. Nxh6+ {[%clk 0:00:09]}  Kh8 {[%clk 0:00:32]} 39. Nf7+ {[%clk 0:00:10]}  Kg8 {[%clk 0:00:33]} 40. Qh5 {[%clk 0:00:09]} 1-0


[Site "https://www.chess.com"]

[Event "Titled Tuesday Blitz March 15 Early 2022"]
[White "Esipenko, Andrey"]
[Black "Nakamura, Hikaru"]
[WhiteFideId "24175439"]
[BlackFideId "2016192"]
[WhiteElo "2617"]
[BlackElo "2850"]
[Result "0-1"]
[Round "11"]
[TimeControl "180+1"]
[Date "2022.03.15"]
[WhiteClock "0:00:02"]
[BlackClock "0:00:34"]

1. e4 {[%clk 0:02:58]}  e5 {[%clk 0:02:58]} 2. Nf3 {[%clk 0:02:58]}  Nc6 {[%clk 0:02:58]} 3. Bc4 {[%clk 0:02:54]}  Bc5 {[%clk 0:02:58]} 4. c3 {[%clk 0:02:51]}  Nf6 {[%clk 0:02:58]} 5. d3 {[%clk 0:02:51]}  d6 {[%clk 0:02:57]} 6. O-O {[%clk 0:02:50]}  a6 {[%clk 0:02:57]} 7. a4 {[%clk 0:02:48]}  Ba7 {[%clk 0:02:57]} 8. Re1 {[%clk 0:02:47]}  O-O {[%clk 0:02:57]} 9. Nbd2 {[%clk 0:02:47]}  h6 {[%clk 0:02:57]} 10. Nf1 {[%clk 0:02:44]}  Re8 {[%clk 0:02:56]} 11. Ng3 {[%clk 0:02:42]}  Be6 {[%clk 0:02:56]} 12. Bxe6 {[%clk 0:02:35]}  Rxe6 {[%clk 0:02:57]} 13. b4 {[%clk 0:02:29]}  Qd7 {[%clk 0:02:55]} 14. Be3 {[%clk 0:02:28]}  Bxe3 {[%clk 0:02:54]} 15. Rxe3 {[%clk 0:02:28]}  Rae8 {[%clk 0:02:53]} 16. b5 {[%clk 0:02:17]}  axb5 {[%clk 0:02:43]} 17. axb5 {[%clk 0:02:17]}  Ne7 {[%clk 0:02:43]} 18. Qb3 {[%clk 0:02:16]}  d5 {[%clk 0:02:34]} 19. c4 {[%clk 0:02:08]}  d4 {[%clk 0:02:19]} 20. Ree1 {[%clk 0:02:08]}  Qc8 {[%clk 0:02:11]} 21. Ra7 {[%clk 0:02:06]}  Nd7 {[%clk 0:02:11]} 22. Qa3 {[%clk 0:01:35]}  c6 {[%clk 0:01:59]} 23. Rb1 {[%clk 0:01:30]}  cxb5 {[%clk 0:01:54]} 24. Rxb5 {[%clk 0:01:29]}  b6 {[%clk 0:01:54]} 25. h3 {[%clk 0:01:29]}  Nc5 {[%clk 0:01:50]} 26. Nf5 {[%clk 0:00:55]}  Nc6 {[%clk 0:01:43]} 27. Rxb6 {[%clk 0:00:43]}  Nxa7 {[%clk 0:01:42]} 28. Qxa7 {[%clk 0:00:40]}  Rxb6 {[%clk 0:01:29]} 29. Qxb6 {[%clk 0:00:39]}  Nxd3 {[%clk 0:01:30]} 30. Qb5 {[%clk 0:00:26]}  Re6 {[%clk 0:01:18]} 31. Nd2 {[%clk 0:00:04]}  Nc5 {[%clk 0:01:15]} 32. Nb3 {[%clk 0:00:02]}  Nxe4 {[%clk 0:01:08]} 33. c5 {[%clk 0:00:02]}  h5 {[%clk 0:01:06]} 34. Qd3 {[%clk 0:00:01]}  Qa8 {[%clk 0:00:40]} 35. f3 {[%clk 0:00:01]}  Nf6 {[%clk 0:00:36]} 36. Nd6 {[%clk 0:00:01]}  Qd5 {[%clk 0:00:34]} 37. Nd2 {[%clk 0:00:02]} 0-1


[Site "https://www.chess.com"]

[Event "Titled Tuesday Blitz March 15 Early 2022"]
[White "Fathy, Elameir"]
[Black "Kanyamarala, Tarun"]
[WhiteFideId "10600396"]
[BlackFideId "45004714"]
[WhiteElo "2311"]
[BlackElo "2075"]
[Result "0-1"]
[Round "11"]
[TimeControl "180+1"]
[Date "2022.03.15"]
[WhiteClock "0:00:02"]
[BlackClock "0:00:13"]

1. d4 {[%clk 0:02:59]}  f5 {[%clk 0:02:58]} 2. c4 {[%clk 0:02:57]}  Nf6 {[%clk 0:02:58]} 3. Nf3 {[%clk 0:02:57]}  g6 {[%clk 0:02:57]} 4. g3 {[%clk 0:02:57]}  Bg7 {[%clk 0:02:58]} 5. Bg2 {[%clk 0:02:58]}  O-O {[%clk 0:02:59]} 6. O-O {[%clk 0:02:59]}  d6 {[%clk 0:02:59]} 7. Nc3 {[%clk 0:03:00]}  Qe8 {[%clk 0:02:59]} 8. Re1 {[%clk 0:02:58]}  h6 {[%clk 0:02:53]} 9. e4 {[%clk 0:02:50]}  Nxe4 {[%clk 0:02:51]} 10. Nxe4 {[%clk 0:02:51]}  fxe4 {[%clk 0:02:52]} 11. Rxe4 {[%clk 0:02:52]}  Bf5 {[%clk 0:02:49]} 12. Re3 {[%clk 0:02:49]}  Nc6 {[%clk 0:02:48]} 13. a3 {[%clk 0:02:41]}  Bg4 {[%clk 0:02:45]} 14. d5 {[%clk 0:02:26]}  Ne5 {[%clk 0:02:36]} 15. h3 {[%clk 0:02:24]}  Nxf3+ {[%clk 0:02:30]} 16. Bxf3 {[%clk 0:02:25]}  Bxh3 {[%clk 0:02:30]} 17. Qe2 {[%clk 0:02:18]}  Qf7 {[%clk 0:02:27]} 18. Bg2 {[%clk 0:02:08]}  Bxg2 {[%clk 0:02:26]} 19. Kxg2 {[%clk 0:02:09]}  Bd4 {[%clk 0:02:26]} 20. Rxe7 {[%clk 0:02:05]}  Qxf2+ {[%clk 0:02:23]} 21. Qxf2 {[%clk 0:02:06]}  Rxf2+ {[%clk 0:02:23]} 22. Kh3 {[%clk 0:02:06]}  Rf7 {[%clk 0:02:14]} 23. Rxf7 {[%clk 0:02:05]}  Kxf7 {[%clk 0:02:15]} 24. Bd2 {[%clk 0:02:00]}  g5 {[%clk 0:02:10]} 25. Rf1+ {[%clk 0:01:54]}  Kg6 {[%clk 0:02:10]} 26. Re1 {[%clk 0:01:55]}  Be5 {[%clk 0:02:05]} 27. Bc3 {[%clk 0:01:50]}  Re8 {[%clk 0:02:02]} 28. c5 {[%clk 0:01:34]}  Kf7 {[%clk 0:01:58]} 29. Rf1+ {[%clk 0:01:33]}  Kg7 {[%clk 0:01:53]} 30. Re1 {[%clk 0:01:32]}  Re7 {[%clk 0:01:43]} 31. Kg4 {[%clk 0:01:09]}  Kg6 {[%clk 0:01:39]} 32. Kh3 {[%clk 0:01:08]}  h5 {[%clk 0:01:38]} 33. b4 {[%clk 0:00:58]}  Kf7 {[%clk 0:01:36]} 34. Rf1+ {[%clk 0:00:57]}  Ke8 {[%clk 0:01:28]} 35. Bd2 {[%clk 0:00:49]}  dxc5 {[%clk 0:00:55]} 36. bxc5 {[%clk 0:00:44]}  g4+ {[%clk 0:00:52]} 37. Kh4 {[%clk 0:00:44]}  Rd7 {[%clk 0:00:52]} 38. Re1 {[%clk 0:00:39]}  Re7 {[%clk 0:00:48]} 39. Kxh5 {[%clk 0:00:37]}  Bxg3 {[%clk 0:00:47]} 40. Rb1 {[%clk 0:00:18]}  b6 {[%clk 0:00:33]} 41. Kxg4 {[%clk 0:00:18]}  Be5 {[%clk 0:00:31]} 42. d6 {[%clk 0:00:16]}  cxd6 {[%clk 0:00:27]} 43. cxb6 {[%clk 0:00:17]}  axb6 {[%clk 0:00:26]} 44. Rxb6 {[%clk 0:00:17]}  Ra7 {[%clk 0:00:27]} 45. Bb4 {[%clk 0:00:17]}  Ra4 {[%clk 0:00:26]} 46. Kf5 {[%clk 0:00:16]}  Kd7 {[%clk 0:00:27]} 47. Rb5 {[%clk 0:00:13]}  Ra8 {[%clk 0:00:26]} 48. Ke4 {[%clk 0:00:11]}  Ke6 {[%clk 0:00:23]} 49. Rb6 {[%clk 0:00:08]}  Rg8 {[%clk 0:00:22]} 50. Kd3 {[%clk 0:00:07]}  Kd5 {[%clk 0:00:22]} 51. Rb5+ {[%clk 0:00:07]}  Kc6 {[%clk 0:00:22]} 52. Ra5 {[%clk 0:00:08]}  Rg3+ {[%clk 0:00:22]} 53. Ke4 {[%clk 0:00:08]}  Rg4+ {[%clk 0:00:22]} 54. Kf5 {[%clk 0:00:08]}  Rf4+ {[%clk 0:00:22]} 55. Ke6 {[%clk 0:00:07]}  Rf6+ {[%clk 0:00:22]} 56. Ke7 {[%clk 0:00:08]}  Rh6 {[%clk 0:00:22]} 57. Kd8 {[%clk 0:00:07]}  Bf6+ {[%clk 0:00:17]} 58. Ke8 {[%clk 0:00:07]}  Be5 {[%clk 0:00:13]} 59. Kf7 {[%clk 0:00:05]}  Rf6+ {[%clk 0:00:12]} 60. Ke7 {[%clk 0:00:04]}  Rh6 {[%clk 0:00:12]} 61. Ra6+ {[%clk 0:00:03]}  Kd5 {[%clk 0:00:12]} 62. Ra8 {[%clk 0:00:02]}  Rh7+ {[%clk 0:00:13]} 0-1


[Site "https://www.chess.com"]

[Event "Titled Tuesday Blitz March 15 Early 2022"]
[White "Fiorito, Fabian"]
[Black "Jaferian, Koosha"]
[WhiteFideId "100200"]
[BlackFideId "12507440"]
[WhiteElo "2395"]
[BlackElo "2030"]
[Result "0-1"]
[Round "11"]
[TimeControl "180+1"]
[Date "2022.03.15"]
[WhiteClock "0:00:10"]
[BlackClock "0:00:26"]

1. d4 {[%clk 0:03:00]}  Nf6 {[%clk 0:02:58]} 2. Nc3 {[%clk 0:03:00]}  d5 {[%clk 0:02:57]} 3. Bf4 {[%clk 0:03:01]}  g6 {[%clk 0:02:57]} 4. e3 {[%clk 0:03:00]}  Bg7 {[%clk 0:02:57]} 5. h4 {[%clk 0:03:01]}  h5 {[%clk 0:02:57]} 6. f3 {[%clk 0:03:01]}  c5 {[%clk 0:02:54]} 7. Qd2 {[%clk 0:03:01]}  cxd4 {[%clk 0:02:51]} 8. exd4 {[%clk 0:03:02]}  a6 {[%clk 0:02:49]} 9. O-O-O {[%clk 0:03:01]}  Nc6 {[%clk 0:02:50]} 10. Be5 {[%clk 0:02:45]}  Bf5 {[%clk 0:02:47]} 11. a3 {[%clk 0:02:42]}  Rc8 {[%clk 0:02:41]} 12. Kb1 {[%clk 0:02:35]}  Na5 {[%clk 0:02:35]} 13. Bd3 {[%clk 0:02:13]}  Nc4 {[%clk 0:02:32]} 14. Bxc4 {[%clk 0:02:13]}  Rxc4 {[%clk 0:02:33]} 15. Nge2 {[%clk 0:02:08]}  b5 {[%clk 0:02:18]} 16. Nf4 {[%clk 0:02:05]}  e6 {[%clk 0:02:00]} 17. Rhe1 {[%clk 0:02:02]}  O-O {[%clk 0:01:59]} 18. g4 {[%clk 0:01:59]}  hxg4 {[%clk 0:01:59]} 19. h5 {[%clk 0:02:00]}  Nxh5 {[%clk 0:01:54]} 20. Nxh5 {[%clk 0:01:59]}  gxh5 {[%clk 0:01:55]} 21. Rh1 {[%clk 0:01:53]}  f6 {[%clk 0:01:41]} 22. Bf4 {[%clk 0:01:44]}  Bg6 {[%clk 0:01:38]} 23. fxg4 {[%clk 0:01:43]}  hxg4 {[%clk 0:01:39]} 24. Bh6 {[%clk 0:01:43]}  Qc7 {[%clk 0:01:33]} 25. Rde1 {[%clk 0:01:39]}  a5 {[%clk 0:01:04]} 26. Bxg7 {[%clk 0:01:37]}  Qxg7 {[%clk 0:01:02]} 27. Rxe6 {[%clk 0:00:22]}  b4 {[%clk 0:01:02]} 28. Nxd5 {[%clk 0:00:20]}  Rxc2 {[%clk 0:00:53]} 29. Qxc2 {[%clk 0:00:16]}  Bxc2+ {[%clk 0:00:54]} 30. Kxc2 {[%clk 0:00:17]}  Qg6+ {[%clk 0:00:41]} 31. Kb3 {[%clk 0:00:14]}  Qd3+ {[%clk 0:00:39]} 32. Ka4 {[%clk 0:00:13]}  Qxd4 {[%clk 0:00:28]} 33. Rd6 {[%clk 0:00:10]}  bxa3+ {[%clk 0:00:26]} 34. Kxa3 {[%clk 0:00:10]}  Qc5+ {[%clk 0:00:26]} 0-1


[Site "https://www.chess.com"]